fUST/lending_fUST_20260505
["ID","MTS","AMOUNT","RATE_DAILY","PERIOD"]
[421616431,1777968644000,-215.46532883,0.00012126,2]
[421616430,1777968644000,-500.0,0.00012126,2]
[421616427,1777968644000,-500.0,0.00012126,2]
[421616429,1777968644000,-500.0,0.00012126,2]
[421616426,1777968644000,-423.34282237,0.00012126,2]
[421616421,1777968644000,-500.0,0.00012126,2]
[421616432,1777968644000,-500.0,0.00012126,2]
[421616422,1777968644000,-500.0,0.00012126,2]
[421616423,1777968644000,-500.0,0.00012126,2]
[421616420,1777968644000,-205.63416848,0.00012126,2]
[421616419,1777968644000,-500.0,0.00012126,2]
[421616417,1777968644000,-180.21486844,0.00012028,2]
[421616415,1777968644000,-2503.30386727,0.00011907,2]
[421616418,1777968644000,-9145.0,0.00012125,2]
[421616416,1777968644000,-5638.55227545,0.00012027,2]
[421616424,1777968644000,-500.0,0.00012126,2]
[421616435,1777968644000,-500.0,0.00012126,2]
[421616428,1777968644000,-206.38042258,0.00012126,2]
[421616438,1777968644000,-500.0,0.00012126,2]
[421616455,1777968644000,-500.0,0.00012126,2]
[421616425,1777968644000,-500.0,0.00012126,2]
[421616456,1777968644000,-500.0,0.00012126,2]
[421616457,1777968644000,-231.09408958,0.00012126,2]
[421616453,1777968644000,-500.0,0.00012126,2]
[421616452,1777968644000,-500.0,0.00012126,2]
[421616454,1777968644000,-500.0,0.00012126,2]
[421616451,1777968644000,-500.0,0.00012126,2]
[421616447,1777968644000,-500.0,0.00012126,2]
[421616450,1777968644000,-500.0,0.00012126,2]
[421616446,1777968644000,-500.0,0.00012126,2]
[421616445,1777968644000,-500.0,0.00012126,2]
[421616448,1777968644000,-500.0,0.00012126,2]
[421616440,1777968644000,-500.0,0.00012126,2]
[421616441,1777968644000,-500.0,0.00012126,2]
[421616442,1777968644000,-500.0,0.00012126,2]
[421616449,1777968644000,-500.0,0.00012126,2]
[421616439,1777968644000,-500.0,0.00012126,2]
[421616437,1777968644000,-500.0,0.00012126,2]
[421616443,1777968644000,-500.0,0.00012126,2]
[421616444,1777968644000,-500.0,0.00012126,2]
[421616465,1777968647000,-500.0,0.00012126,2]
[421616464,1777968647000,-199.49444642,0.00012126,2]
[421616467,1777968647000,-246.33997566,0.00012126,2]
[421616468,1777968647000,-28715.98427892,0.00012127,2]
[421616466,1777968647000,-500.0,0.00012126,2]
[421616471,1777968647000,-17834.05534243,0.00012127,2]
[421616475,1777968647000,-17684.00283227,0.00012127,2]
[421616476,1777968647000,-927.19930424,0.00012127,2]
[421616477,1777968647000,-253.7425319,0.00012127,2]
[421616470,1777968647000,-13793.15493209,0.00012127,2]
[421616469,1777968647000,-9145.54176067,0.00012127,2]
[421616478,1777968750000,200.0,0.0001646,120]
[421616479,1777968871000,200.0,0.00015961,120]
[421616480,1777968990000,200.0,0.00019515,120]
[421616482,1777969054000,504.0,0.00020821,120]
[421616483,1777969292000,188.788486,5.403e-05,2]
[421616485,1777969410000,200.0,0.00017487,120]
[421616486,1777969420000,5000.0,8.01e-05,2]
[421616487,1777969442000,5000.0,8.01e-05,2]
[421616488,1777969464000,5000.0,8.01e-05,2]
[421616489,1777969470000,200.0,0.00019584,120]
[421616490,1777969472000,1702.26371008,8.01e-05,2]
[421616491,1777969486000,5000.0,8.01e-05,2]
[421616492,1777969509000,5000.0,8.01e-05,2]
[421616493,1777969530000,200.0,0.00019398,120]
[421616494,1777969531000,5000.0,8.01e-05,2]
[421616495,1777969553000,5000.0,8.01e-05,2]
[421616496,1777969572000,152.0,0.00010041,30]
[421616497,1777969573000,152.0,0.00010041,30]
[421616498,1777969575000,5000.0,8.01e-05,2]
[421616499,1777969597000,5000.0,8.01e-05,2]
[421616500,1777969619000,3849.94803431,8.01e-05,2]
[421616508,1777969639000,152.0,9.509e-05,30]
[421616509,1777969640000,152.0,9.512e-05,30]
[421616510,1777969647000,2024.77509913,0.00020821,120]
[421616511,1777969668000,152.0,0.00010047,30]
[421616512,1777969668000,152.0,0.0001005,30]
[421616517,1777969717000,152.0,0.00010045,30]
[421616518,1777969718000,152.0,0.00010048,30]
[421616536,1777969779000,400.96405388,0.00020821,120]
[421616537,1777969784000,152.0,0.00010041,30]
[421616540,1777969815000,152.0,0.0001004,30]
[421616541,1777969816000,152.0,0.0001004,30]
[421616737,1777969836000,-188.788486,8.105e-05,2]
[421616743,1777969837000,-152.0,0.00010184,7]
[421616741,1777969837000,-152.0,0.00010181,7]
[421616752,1777969837000,-151.0,0.00011672,2]
[421616739,1777969837000,-33.91604208,0.00010108,2]
[421616740,1777969837000,-217.02369471,0.00010108,2]
[421616738,1777969837000,-392.06269064,8.781e-05,2]
[421616744,1777969837000,-462.63397495,0.00010781,2]
[421616742,1777969837000,-152.0,0.00010181,7]
[421616745,1777969837000,-188.788486,0.00010807,2]
[421616753,1777969837000,-527.4026994,0.00011672,2]
[421616751,1777969837000,-456.2418086,0.00011672,2]
[421616746,1777969837000,-151.0,0.00010852,2]
[421616756,1777969837000,-13.12498069,0.00011829,2]
[421616755,1777969837000,-286.87501931,0.00011829,2]
[421616754,1777969837000,-160.0,0.00011757,2]
[421616757,1777969837000,-600.74116118,0.00011829,2]
[421616750,1777969837000,-456.2418086,0.00011672,2]
[421616748,1777969837000,-151.0,0.00011663,2]
[421616747,1777969837000,-231.7173752,0.00010852,2]
[421616749,1777969837000,-151.0,0.00011672,2]
[421616772,1777969838000,-500.0,0.00011926,2]
[421616763,1777969838000,-599.25883882,0.00011829,2]
[421616762,1777969838000,-160.0,0.00011824,2]
[421616766,1777969838000,-160.0,0.0001183,2]
[421616769,1777969838000,-349.38114196,0.000119,2]
[421616765,1777969838000,-160.0,0.0001183,2]
[421616768,1777969838000,-376.269705,0.000119,2]
[421616764,1777969838000,-161.56332863,0.0001183,2]
[421616767,1777969838000,-225.92929163,0.000119,2]
[421616770,1777969838000,-500.0,0.00011926,2]
[421616773,1777969838000,-500.0,0.00011926,2]
[421616771,1777969838000,-500.0,0.00011926,2]
[421616785,1777969838000,-4193.61525916,0.00011927,2]
[421616774,1777969838000,-500.0,0.00011926,2]
[421616776,1777969838000,-522.43798296,0.00011926,2]
[421616778,1777969838000,-500.0,0.00011926,2]
[421616784,1777969838000,-342.726,0.00011926,2]
[421616781,1777969838000,-216.26103331,0.00011926,2]
[421616780,1777969838000,-442.0,0.00011926,2]
[421616783,1777969838000,-185.0,0.00011926,2]
[421616782,1777969838000,-524.73896669,0.00011926,2]
[421616806,1777969854000,-28527.19579292,0.00011927,2]
[421616808,1777969854000,152.0,0.00010043,30]
[421616807,1777969854000,-944.85128539,0.00011927,2]
[421616810,1777969855000,-4300.62647664,0.00011927,2]
[421616809,1777969855000,-152.0,0.0001018,7]
[421616811,1777969860000,8481.72185625,7.6e-05,2]
[421616812,1777969871000,152.0,0.00010043,30]
[421616822,1777970086000,181.525899,5.942e-05,2]
[421616821,1777970086000,181.525899,5.659e-05,2]
[421616820,1777970086000,181.525899,5.376e-05,2]
[421616823,1777970087000,181.525899,6.225e-05,2]
[421616826,1777970087000,181.525899,7.074e-05,2]
[421616824,1777970087000,181.525899,6.508e-05,2]
[421616825,1777970087000,181.525899,6.791e-05,2]
[421616827,1777970088000,181.525899,7.356e-05,2]
[421616829,1777970088000,181.525899,7.922e-05,2]
[421616828,1777970088000,181.525899,7.639e-05,2]
[421616831,1777970098000,152.0,0.00010041,30]
[421616834,1777970350000,190.51255955,0.0002082,120]
[421616836,1777970457000,5000.0,8.01e-05,2]
[421616847,1777970839000,152.0,0.00010043,30]
[421616888,1777971032000,-364.02365167,8.164e-05,2]
[421616887,1777971032000,-535.0,8.164e-05,2]
[421616929,1777971040000,-300.0,8.284e-05,2]
[421616950,1777971040000,-300.0,8.284e-05,2]
[421616956,1777971040000,-181.525899,8.488e-05,2]
[421616955,1777971040000,-300.0,8.284e-05,2]
[421616942,1777971040000,-300.0,8.284e-05,2]
[421616940,1777971040000,-300.0,8.284e-05,2]
[421616927,1777971040000,-300.0,8.284e-05,2]
[421616938,1777971040000,-300.0,8.284e-05,2]
[421616946,1777971040000,-300.0,8.284e-05,2]
[421616935,1777971040000,-300.0,8.284e-05,2]
[421616931,1777971040000,-300.0,8.284e-05,2]
[421616921,1777971040000,-181.525899,8.205e-05,2]
[421616923,1777971040000,-621.38978381,8.283e-05,2]
[421616933,1777971040000,-300.0,8.284e-05,2]
[421616936,1777971040000,-300.0,8.284e-05,2]
[421616919,1777971040000,-38.61020116,8.164e-05,2]
[421616925,1777971040000,-578.61021619,8.283e-05,2]
[421616944,1777971040000,-300.0,8.284e-05,2]
[421616952,1777971040000,-300.0,8.284e-05,2]
[421616948,1777971040000,-300.0,8.284e-05,2]
[421616987,1777971040000,-1525.57541363,0.0001163,2]
[421616986,1777971040000,-6855.87471478,0.0001163,2]
[421616984,1777971040000,-213.82,0.00011531,2]
[421616976,1777971040000,-181.525899,0.00010752,2]
[421616979,1777971040000,-151.0,0.0001085,2]
[421616977,1777971040000,-325.2175675,0.0001085,2]
[421616983,1777971040000,-151.0,0.0001085,2]
[421616975,1777971040000,-152.0,0.00010521,7]
[421616981,1777971040000,-151.0,0.0001085,2]
[421616985,1777971040000,-15307.06127058,0.0001163,2]
[421616973,1777971040000,-152.0,0.00010521,7]
[421616970,1777971040000,-181.525899,0.00010186,2]
[421616960,1777971040000,-181.525899,9.054e-05,2]
[421616966,1777971040000,-181.525899,9.903e-05,2]
[421616964,1777971040000,-181.525899,9.62e-05,2]
[421616962,1777971040000,-181.525899,9.337e-05,2]
[421616968,1777971040000,-475.10794634,0.00010164,2]
[421616958,1777971040000,-181.525899,8.771e-05,2]
[421616972,1777971040000,-181.525899,0.00010469,2]
[421617022,1777971043000,-163.52,0.00011679,2]
[421617027,1777971043000,-161.56332863,0.00011783,2]
[421617017,1777971043000,-156.93040231,0.00011659,2]
[421617016,1777971043000,-325.688714,0.00011647,2]
[421617015,1777971043000,-325.2194603,0.00011647,2]
[421617008,1777971043000,-652.25,0.0001163,2]
[421617013,1777971043000,-161.38,0.00011644,2]
[421617011,1777971043000,-4570.62049485,0.0001163,2]
[421617012,1777971043000,-160.02,0.00011637,2]
[421617009,1777971043000,-4186.43439393,0.0001163,2]
[421617018,1777971043000,-5.75959769,0.00011659,2]
[421617014,1777971043000,-456.0530637,0.00011647,2]
[421617024,1777971043000,-160.0,0.0001173,2]
[421617019,1777971043000,-447.24040231,0.0001166,2]
[421617023,1777971043000,-166.08,0.00011685,2]
[421617031,1777971043000,-158.45601185,0.000118,2]
[421617034,1777971043000,-130.17950312,0.000118,2]
[421617021,1777971043000,-456.1217259,0.00011672,2]
[421617029,1777971043000,-160.0,0.00011783,2]
[421617035,1777971043000,-487.28447981,0.0001183,2]
[421617032,1777971043000,-156.97220407,0.000118,2]
[421617033,1777971043000,-27.72910761,0.000118,2]
[421617028,1777971043000,-160.0,0.00011783,2]
[421617020,1777971043000,-60.45490109,0.0001166,2]
[421617025,1777971043000,-162.61186216,0.0001173,2]
[421617026,1777971043000,-160.0,0.00011758,2]
[421617030,1777971043000,-152.6393926,0.000118,2]
[421617091,1777971046000,-984.7182516,0.0001153,2]
[421617090,1777971046000,-15336.04182989,0.0001153,2]
[421617079,1777971046000,-8788.02045029,0.0001153,2]
[421617078,1777971046000,-152.0,0.00010359,2]
[421617076,1777971046000,-152.0,0.00010359,2]
[421617101,1777971654000,-1196.31764971,9.364e-05,2]
[421617106,1777971844000,4403.62208815,0.0002082,120]
[421617113,1777972110000,20000.0,0.0002082,120]
[421617117,1777972146000,15776.5,8e-05,2]
[421617218,1777972232000,-438.23496928,0.00011169,2]
[421617173,1777972232000,-300.0,0.00010513,2]
[421617221,1777972232000,-1006.81783792,0.00011169,2]
[421617168,1777972232000,-300.0,0.00010513,2]
[421617166,1777972232000,-1381.96146184,0.00010005,2]
[421617165,1777972232000,-500.0,9.652e-05,2]
[421617162,1777972232000,-440.32,9e-05,2]
[421617163,1777972232000,-420.0,9.605e-05,2]
[421617171,1777972232000,-300.0,0.00010513,2]
[421617160,1777972232000,-394.79759966,8.777e-05,2]
[421617149,1777972232000,-908.06644971,8.474e-05,2]
[421617158,1777972232000,-300.0,8.732e-05,2]
[421617156,1777972232000,-3784.98153416,8.646e-05,2]
[421617152,1777972232000,-539.0,8.474e-05,2]
[421617151,1777972232000,-967.77653547,8.474e-05,2]
[421617146,1777972232000,-2192.48212691,8.474e-05,2]
[421617139,1777972232000,-931.67488791,8.474e-05,2]
[421617154,1777972232000,-1647.95295572,8.56e-05,2]
[421617184,1777972232000,-300.0,0.00010513,2]
[421617182,1777972232000,-300.0,0.00010513,2]
[421617178,1777972232000,-300.0,0.00010513,2]
[421617216,1777972232000,-544.11268438,0.00011169,2]
[421617214,1777972232000,-2440.17514338,0.00011169,2]
[421617206,1777972232000,-465.86116759,0.00010777,2]
[421617203,1777972232000,-587.0,0.00010566,2]
[421617175,1777972232000,-300.0,0.00010513,2]
[421617207,1777972232000,-8169.2218954,0.00011141,2]
[421617212,1777972232000,-2167.19413998,0.00011169,2]
[421617201,1777972232000,-2732.66741808,0.00010525,2]
[421617210,1777972232000,-106.42796543,0.00011169,2]
[421617197,1777972232000,-300.0,0.00010513,2]
[421617195,1777972232000,-300.0,0.00010513,2]
[421617193,1777972232000,-300.0,0.00010513,2]
[421617190,1777972232000,-300.0,0.00010513,2]
[421617188,1777972232000,-300.0,0.00010513,2]
[421617186,1777972232000,-300.0,0.00010513,2]
[421617180,1777972232000,-300.0,0.00010513,2]
[421617199,1777972232000,-300.0,0.00010513,2]
[421617248,1777972238000,-500.0,0.00011466,2]
[421617256,1777972238000,-500.0,0.00011466,2]
[421617254,1777972238000,-500.0,0.00011466,2]
[421617253,1777972238000,-500.0,0.00011466,2]
[421617251,1777972238000,-220.64673228,0.00011466,2]
[421617245,1777972238000,-500.0,0.00011466,2]
[421617246,1777972238000,-500.0,0.00011466,2]
[421617258,1777972238000,-185.58313279,0.00011466,2]
[421617250,1777972238000,-500.0,0.00011466,2]
[421617249,1777972238000,-500.0,0.00011466,2]
[421617247,1777972238000,-291.36925615,0.00011466,2]
[421617243,1777972238000,-908.8230284,0.00011169,2]
[421617244,1777972238000,-325.0,0.00011465,2]
[421617242,1777972238000,-2302.96354263,0.00011169,2]
[421617252,1777972238000,-500.0,0.00011466,2]
[421617257,1777972238000,-500.0,0.00011466,2]
[421617255,1777972238000,-500.0,0.00011466,2]
[421617259,1777972238000,-500.0,0.00011466,2]
[421617260,1777972238000,-500.0,0.00011466,2]
[421617273,1777972238000,-500.0,0.00011466,2]
[421617275,1777972238000,-282.17307873,0.00011466,2]
[421617272,1777972238000,-500.0,0.00011466,2]
[421617271,1777972238000,-500.0,0.00011466,2]
[421617270,1777972238000,-500.0,0.00011466,2]
[421617269,1777972238000,-500.0,0.00011466,2]
[421617268,1777972238000,-500.0,0.00011466,2]
[421617265,1777972238000,-500.0,0.00011466,2]
[421617266,1777972238000,-500.0,0.00011466,2]
[421617262,1777972238000,-423.87399958,0.00011466,2]
[421617263,1777972238000,-500.0,0.00011466,2]
[421617264,1777972238000,-284.66058558,0.00011466,2]
[421617274,1777972238000,-220.02184465,0.00011466,2]
[421617261,1777972238000,-500.0,0.00011466,2]
[421617267,1777972238000,-500.0,0.00011466,2]
[421617284,1777972240000,-18.57074396,0.00011466,2]
[421617283,1777972240000,-500.0,0.00011466,2]
[421617281,1777972240000,-217.82692127,0.00011466,2]
[421617282,1777972240000,-500.0,0.00011466,2]
[421617299,1777972246000,-481.42925604,0.00011466,2]
[421617298,1777972246000,-152.0,9.341e-05,2]
[421617301,1777972246000,-500.0,0.00011466,2]
[421617297,1777972246000,-152.0,9.341e-05,2]
[421617302,1777972246000,-500.0,0.00011466,2]
[421617304,1777972246000,-3465.3827505,0.00011467,2]
[421617305,1777972246000,-1188.14946176,0.00011467,2]
[421617303,1777972246000,-541.39467006,0.00011466,2]
[421617300,1777972246000,-500.0,0.00011466,2]
[421617325,1777973015000,4096.31764971,8.01e-05,2]
[421617338,1777973172000,167.2730683,3.884e-05,2]
[421617339,1777973190000,5000.0,8.01e-05,2]
[421617340,1777973198000,4843.95682603,8.01e-05,2]
[421617342,1777973213000,4214.91285963,8.01e-05,2]
[421617343,1777973222000,200.06689248,0.0002,120]
[421617419,1777973435000,-400.35343951,8.194e-05,2]
[421617420,1777973436000,-535.0,8.193e-05,2]
[421617422,1777973436000,-282.43519046,9.431e-05,2]
[421617421,1777973436000,-300.0,9.431e-05,2]
[421617425,1777973436000,-300.0,9.431e-05,2]
[421617423,1777973436000,-17.56480954,9.431e-05,2]
[421617426,1777973436000,-95.66462066,9.431e-05,2]
[421617428,1777973436000,-58.92698817,9.432e-05,2]
[421617427,1777973436000,-1104.33537934,9.431e-05,2]
[421617424,1777973436000,-300.0,9.431e-05,2]
[421617442,1777973438000,-300.0,9.432e-05,2]
[421617434,1777973438000,-241.07301183,9.432e-05,2]
[421617435,1777973438000,-300.0,9.432e-05,2]
[421617437,1777973438000,-300.0,9.432e-05,2]
[421617436,1777973438000,-300.0,9.432e-05,2]
[421617438,1777973438000,-300.0,9.432e-05,2]
[421617441,1777973438000,-300.0,9.432e-05,2]
[421617440,1777973438000,-300.0,9.432e-05,2]
[421617439,1777973438000,-300.0,9.432e-05,2]
[421617443,1777973438000,-300.0,9.432e-05,2]
[421617444,1777973438000,-300.0,9.432e-05,2]
[421617456,1777973438000,-1680.0,0.00010374,2]
[421617446,1777973438000,-300.0,9.432e-05,2]
[421617448,1777973438000,-300.0,9.432e-05,2]
[421617450,1777973438000,-500.00000031,9.599e-05,2]
[421617447,1777973438000,-300.0,9.432e-05,2]
[421617449,1777973438000,-35384.66531306,9.432e-05,2]
[421617451,1777973438000,-1163.39293246,0.0001,2]
[421617445,1777973438000,-300.0,9.432e-05,2]
[421617455,1777973438000,-420.0,0.00010374,2]
[421617454,1777973438000,-420.0,0.00010374,2]
[421617453,1777973438000,-472.41705862,0.00010193,2]
[421617452,1777973438000,-860.496603,0.0001,2]
[421617490,1777973439000,-578.20924308,0.00011592,2]
[421617488,1777973439000,-4249.84296377,0.00011567,2]
[421617487,1777973439000,-557.5788265,0.00011537,2]
[421617486,1777973439000,-151.0,0.000115,2]
[421617500,1777973439000,-693.3919763,0.00011867,2]
[421617485,1777973439000,-500.0,0.000115,2]
[421617478,1777973439000,-151.0,0.000115,2]
[421617489,1777973439000,-297.2682,0.00011578,2]
[421617484,1777973439000,-151.0,0.000115,2]
[421617491,1777973439000,-599.60298507,0.00011647,2]
[421617496,1777973439000,-160.0,0.00011752,2]
[421617493,1777973439000,-621.78829552,0.00011702,2]
[421617494,1777973439000,-161.56332863,0.00011752,2]
[421617495,1777973439000,-160.0,0.00011752,2]
[421617505,1777973439000,-615.7105189,0.00011944,2]
[421617474,1777973439000,-537.6845,0.00011482,2]
[421617499,1777973439000,-668.65185757,0.00011812,2]
[421617497,1777973439000,-151.0,0.00011757,2]
[421617502,1777973439000,-336.151,0.00011927,2]
[421617498,1777973439000,-644.79446246,0.00011757,2]
[421617492,1777973439000,-161.01232938,0.00011652,2]
[421617480,1777973439000,-151.0,0.000115,2]
[421617481,1777973439000,-151.0,0.000115,2]
[421617475,1777973439000,-537.6845,0.00011482,2]
[421617457,1777973439000,-456.2418086,0.00010825,2]
[421617459,1777973439000,-5488.80400663,0.00011009,2]
[421617469,1777973439000,-587.0,0.00011412,2]
[421617461,1777973439000,-2457.8724414,0.00011009,2]
[421617460,1777973439000,-3146.58204807,0.00011009,2]
[421617458,1777973439000,-251.14791539,0.00010826,2]
[421617462,1777973439000,-22.73865244,0.00011009,2]
[421617463,1777973439000,-2703.73043286,0.00011009,2]
[421617467,1777973439000,-446.82163355,0.000113,2]
[421617464,1777973439000,-151.0,0.00011009,2]
[421617466,1777973439000,-263.49745891,0.000113,2]
[421617465,1777973439000,-600.0,0.00011228,2]
[421617468,1777973439000,-483.87479386,0.000113,2]
[421617470,1777973439000,-1334.0,0.00011412,2]
[421617471,1777973439000,-500.0,0.00011467,2]
[421617472,1777973439000,-445.202766,0.00011482,2]
[421617482,1777973439000,-151.0,0.000115,2]
[421617473,1777973439000,-162.380719,0.00011482,2]
[421617483,1777973439000,-151.0,0.000115,2]
[421617477,1777973439000,-151.0,0.000115,2]
[421617476,1777973439000,-151.0,0.000115,2]
[421617479,1777973439000,-151.0,0.000115,2]
[421617504,1777973439000,-357.78020496,0.00011944,2]
[421617508,1777973439000,-2214.0,0.00011945,2]
[421617501,1777973439000,-719.04747942,0.00011922,2]
[421617533,1777973439000,-223.31251439,0.00012327,2]
[421617537,1777973439000,-500.0,0.00012328,2]
[421617532,1777973439000,-155.0,0.00012327,2]
[421617534,1777973439000,-2648.5741,0.00012328,2]
[421617535,1777973439000,-749.27,0.00012328,2]
[421617542,1777973439000,-500.0,0.00012328,2]
[421617538,1777973439000,-1260.94,0.00012328,2]
[421617541,1777973439000,-500.0,0.00012328,2]
[421617539,1777973439000,-948.84,0.00012328,2]
[421617531,1777973439000,-155.0,0.00012327,2]
[421617536,1777973439000,-500.0,0.00012328,2]
[421617550,1777973439000,-500.0,0.00012328,2]
[421617551,1777973439000,-500.0,0.00012328,2]
[421617545,1777973439000,-45.30574755,0.00012328,2]
[421617543,1777973439000,-888.32,0.00012328,2]
[421617548,1777973439000,-500.0,0.00012328,2]
[421617547,1777973439000,-500.0,0.00012328,2]
[421617544,1777973439000,-500.0,0.00012328,2]
[421617546,1777973439000,-462.61425245,0.00012328,2]
[421617503,1777973439000,-587.18450951,0.00011944,2]
[421617540,1777973439000,-500.0,0.00012328,2]
[421617521,1777973439000,-557.5788265,0.0001203,2]
[421617549,1777973439000,-500.0,0.00012328,2]
[421617524,1777973439000,-6043.47319191,0.00012081,2]
[421617506,1777973439000,-158.20822218,0.00011944,2]
[421617522,1777973439000,-773.2413689,0.00012032,2]
[421617511,1777973439000,-185.0,0.00011945,2]
[421617516,1777973439000,-4023.0,0.00011975,2]
[421617510,1777973439000,-556.0,0.00011945,2]
[421617509,1777973439000,-442.0,0.00011945,2]
[421617515,1777973439000,-151.0,0.00011975,2]
[421617513,1777973439000,-1134.0,0.00011975,2]
[421617512,1777973439000,-730.0,0.00011975,2]
[421617507,1777973439000,-572.933,0.00011945,2]
[421617517,1777973439000,-151.0,0.00011975,2]
[421617525,1777973439000,-176.04865274,0.00012081,2]
[421617519,1777973439000,-2517.77382072,0.00012,2]
[421617518,1777973439000,-745.65223616,0.00011977,2]
[421617527,1777973439000,-160.0,0.000121,3]
[421617529,1777973439000,-544.48067773,0.00012193,2]
[421617526,1777973439000,-374.97128755,0.00012087,2]
[421617530,1777973439000,-4730.0,0.00012326,2]
[421617528,1777973439000,-500.0,0.00012153,2]
[421617514,1777973439000,-224.0,0.00011975,2]
[421617520,1777973439000,-469.48671441,0.0001203,2]
[421617523,1777973439000,-277.66070168,0.00012036,2]
[421617592,1777973440000,-580.91,0.00012328,2]
[421617603,1777973440000,-689.89,0.00012328,2]
[421617593,1777973440000,-500.0,0.00012328,2]
[421617580,1777973440000,-500.0,0.00012328,2]
[421617589,1777973440000,-500.0,0.00012328,2]
[421617590,1777973440000,-500.0,0.00012328,2]
[421617591,1777973440000,-500.0,0.00012328,2]
[421617586,1777973440000,-500.0,0.00012328,2]
[421617588,1777973440000,-500.0,0.00012328,2]
[421617596,1777973440000,-500.0,0.00012328,2]
[421617585,1777973440000,-500.0,0.00012328,2]
[421617587,1777973440000,-609.75,0.00012328,2]
[421617595,1777973440000,-1450.84,0.00012328,2]
[421617620,1777973440000,-500.0,0.00012328,2]
[421617608,1777973440000,-688.28,0.00012328,2]
[421617605,1777973440000,-500.0,0.00012328,2]
[421617597,1777973440000,-500.0,0.00012328,2]
[421617600,1777973440000,-151.0,0.00012328,2]
[421617599,1777973440000,-500.0,0.00012328,2]
[421617598,1777973440000,-642.76,0.00012328,2]
[421617601,1777973440000,-584.5499,0.00012328,2]
[421617610,1777973440000,-500.0,0.00012328,2]
[421617609,1777973440000,-885.32,0.00012328,2]
[421617611,1777973440000,-1451.42,0.00012328,2]
[421617614,1777973440000,-500.0,0.00012328,2]
[421617612,1777973440000,-500.0,0.00012328,2]
[421617584,1777973440000,-500.0,0.00012328,2]
[421617607,1777973440000,-295.88781655,0.00012328,2]
[421617581,1777973440000,-784.65,0.00012328,2]
[421617561,1777973440000,-500.0,0.00012328,2]
[421617582,1777973440000,-1905.13,0.00012328,2]
[421617613,1777973440000,-604.13,0.00012328,2]
[421617553,1777973440000,-65.958793,0.00012328,2]
[421617552,1777973440000,-500.0,0.00012328,2]
[421617554,1777973440000,-434.041207,0.00012328,2]
[421617556,1777973440000,-500.0,0.00012328,2]
[421617564,1777973440000,-500.0,0.00012328,2]
[421617558,1777973440000,-500.0,0.00012328,2]
[421617555,1777973440000,-500.0,0.00012328,2]
[421617560,1777973440000,-1244.11,0.00012328,2]
[421617559,1777973440000,-500.0,0.00012328,2]
[421617557,1777973440000,-500.0,0.00012328,2]
[421617562,1777973440000,-2027.8189,0.00012328,2]
[421617563,1777973440000,-457.89072622,0.00012328,2]
[421617583,1777973440000,-500.0,0.00012328,2]
[421617565,1777973440000,-500.0,0.00012328,2]
[421617566,1777973440000,-500.0,0.00012328,2]
[421617575,1777973440000,-890.02,0.00012328,2]
[421617572,1777973440000,-478.90321676,0.00012328,2]
[421617568,1777973440000,-500.0,0.00012328,2]
[421617574,1777973440000,-583.90980718,0.00012328,2]
[421617573,1777973440000,-500.0,0.00012328,2]
[421617576,1777973440000,-500.0,0.00012328,2]
[421617577,1777973440000,-500.0,0.00012328,2]
[421617570,1777973440000,-500.0,0.00012328,2]
[421617569,1777973440000,-706.71,0.00012328,2]
[421617571,1777973440000,-500.0,0.00012328,2]
[421617578,1777973440000,-804.31,0.00012328,2]